[Event "Titled Tuesday Blitz August 08 Late 2023"]
[White "Gajwa Ankit"]
[Black "Erzhanov, Arman"]
[WhiteFideId "5077834"]
[BlackFideId "4138821"]
[WhiteElo "2385"]
[BlackElo "2612"]
[Result "1/2-1/2"]
[Round "4"]
[TimeControl "180+1"]
[Date "2023.08.08"]
[WhiteClock "0:00:09"]
[BlackClock "0:00:05"]
[Board "109"]

1. e4 {[%clk 0:02:55]}  d6 {[%clk 0:03:00]} 2. d4 {[%clk 0:02:54]}  Nf6 {[%clk 0:03:00]} 3. Nc3 {[%clk 0:02:55]}  c6 {[%clk 0:03:00]} 4. f4 {[%clk 0:02:53]}  d5 {[%clk 0:03:01]} 5. e5 {[%clk 0:02:52]}  Ng8 {[%clk 0:03:01]} 6. Nf3 {[%clk 0:02:53]}  h5 {[%clk 0:03:01]} 7. Bd3 {[%clk 0:02:53]}  Nh6 {[%clk 0:03:01]} 8. O-O {[%clk 0:02:53]}  g6 {[%clk 0:03:01]} 9. Nh4 {[%clk 0:02:47]}  Bg4 {[%clk 0:03:01]} 10. Qe1 {[%clk 0:02:47]}  e6 {[%clk 0:03:01]} 11. Nd1 {[%clk 0:02:43]}  Be7 {[%clk 0:03:01]} 12. Nf3 {[%clk 0:02:42]}  Bf5 {[%clk 0:03:01]} 13. Ne3 {[%clk 0:02:41]}  Bxd3 {[%clk 0:02:59]} 14. cxd3 {[%clk 0:02:42]}  Nd7 {[%clk 0:02:53]} 15. Bd2 {[%clk 0:02:37]}  Qb6 {[%clk 0:02:53]} 16. Ba5 {[%clk 0:02:28]}  Qa6 {[%clk 0:02:48]} 17. Bb4 {[%clk 0:02:23]}  Bxb4 {[%clk 0:02:03]} 18. Qxb4 {[%clk 0:02:22]}  O-O-O {[%clk 0:02:03]} 19. Rfc1 {[%clk 0:02:11]}  Kb8 {[%clk 0:01:59]} 20. Qd2 {[%clk 0:01:44]}  Rc8 {[%clk 0:01:52]} 21. b4 {[%clk 0:01:44]}  Ng4 {[%clk 0:01:47]} 22. Nd1 {[%clk 0:01:41]}  Qb6 {[%clk 0:01:26]} 23. a4 {[%clk 0:01:39]}  Qd8 {[%clk 0:01:24]} 24. Rab1 {[%clk 0:01:24]}  Nh6 {[%clk 0:01:21]} 25. Nc3 {[%clk 0:01:20]}  Nf5 {[%clk 0:01:20]} 26. b5 {[%clk 0:01:17]}  c5 {[%clk 0:01:19]} 27. dxc5 {[%clk 0:01:18]}  Rxc5 {[%clk 0:01:19]} 28. Ne2 {[%clk 0:01:16]}  Qb6 {[%clk 0:01:17]} 29. Rxc5 {[%clk 0:01:15]}  Qxc5+ {[%clk 0:01:16]} 30. d4 {[%clk 0:01:15]}  Qa3 {[%clk 0:01:14]} 31. Rc1 {[%clk 0:01:10]}  Nb6 {[%clk 0:01:06]} 32. Qc3 {[%clk 0:00:51]}  Qxc3 {[%clk 0:01:03]} 33. Rxc3 {[%clk 0:00:50]}  Nxa4 {[%clk 0:01:02]} 34. Ra3 {[%clk 0:00:47]}  Nb6 {[%clk 0:01:02]} 35. Ng5 {[%clk 0:00:47]}  Rf8 {[%clk 0:00:59]} 36. Nh7 {[%clk 0:00:41]}  Rc8 {[%clk 0:00:58]} 37. Rc3 {[%clk 0:00:40]}  Rxc3 {[%clk 0:00:57]} 38. Nxc3 {[%clk 0:00:39]}  Kc7 {[%clk 0:00:40]} 39. Ng5 {[%clk 0:00:39]}  Nh6 {[%clk 0:00:40]} 40. Kf2 {[%clk 0:00:38]}  Kd7 {[%clk 0:00:40]} 41. Ke3 {[%clk 0:00:37]}  Ke7 {[%clk 0:00:40]} 42. h3 {[%clk 0:00:36]}  Nf5+ {[%clk 0:00:39]} 43. Kd3 {[%clk 0:00:36]}  h4 {[%clk 0:00:37]} 44. Nd1 {[%clk 0:00:36]}  Nc4 {[%clk 0:00:37]} 45. Nf2 {[%clk 0:00:36]}  Na3 {[%clk 0:00:35]} 46. b6 {[%clk 0:00:36]}  axb6 {[%clk 0:00:36]} 47. Nd1 {[%clk 0:00:35]}  b5 {[%clk 0:00:34]} 48. Ne3 {[%clk 0:00:35]}  Nxe3 {[%clk 0:00:33]} 49. Kxe3 {[%clk 0:00:35]}  b4 {[%clk 0:00:32]} 50. Kd3 {[%clk 0:00:35]}  b5 {[%clk 0:00:32]} 51. Nf3 {[%clk 0:00:35]}  Nc4 {[%clk 0:00:28]} 52. Nxh4 {[%clk 0:00:32]}  b3 {[%clk 0:00:28]} 53. Kc3 {[%clk 0:00:32]}  b2 {[%clk 0:00:28]} 54. Kc2 {[%clk 0:00:33]}  b4 {[%clk 0:00:28]} 55. Nf3 {[%clk 0:00:33]}  Kd7 {[%clk 0:00:25]} 56. g4 {[%clk 0:00:32]}  Ke7 {[%clk 0:00:21]} 57. h4 {[%clk 0:00:31]}  Kf8 {[%clk 0:00:22]} 58. Kb1 {[%clk 0:00:24]}  b3 {[%clk 0:00:19]} 59. Ne1 {[%clk 0:00:23]}  Kg7 {[%clk 0:00:18]} 60. Nd3 {[%clk 0:00:23]}  Kh6 {[%clk 0:00:15]} 61. Nxb2 {[%clk 0:00:23]}  Ne3 {[%clk 0:00:15]} 62. Nd3 {[%clk 0:00:20]}  Nxg4 {[%clk 0:00:15]} 63. Kb2 {[%clk 0:00:20]}  Ne3 {[%clk 0:00:13]} 64. Kxb3 {[%clk 0:00:20]}  Nf5 {[%clk 0:00:13]} 65. Nc5 {[%clk 0:00:19]}  Nxd4+ {[%clk 0:00:13]} 66. Kc3 {[%clk 0:00:20]}  Ne2+ {[%clk 0:00:13]} 67. Kd2 {[%clk 0:00:20]}  Nxf4 {[%clk 0:00:14]} 68. Ke3 {[%clk 0:00:20]}  Ng2+ {[%clk 0:00:14]} 69. Kf3 {[%clk 0:00:20]}  Nxh4+ {[%clk 0:00:15]} 70. Kg4 {[%clk 0:00:20]}  Nf5 {[%clk 0:00:15]} 71. Nd7 {[%clk 0:00:21]}  Kg7 {[%clk 0:00:15]} 72. Nf6 {[%clk 0:00:21]}  Nd4 {[%clk 0:00:14]} 73. Kf4 {[%clk 0:00:21]}  Nc6 {[%clk 0:00:14]} 74. Ng4 {[%clk 0:00:21]}  Ne7 {[%clk 0:00:15]} 75. Ne3 {[%clk 0:00:21]}  Ng8 {[%clk 0:00:14]} 76. Ng4 {[%clk 0:00:21]}  Nh6 {[%clk 0:00:14]} 77. Nf6 {[%clk 0:00:22]}  Nf5 {[%clk 0:00:15]} 78. Ne8+ {[%clk 0:00:22]}  Kf8 {[%clk 0:00:15]} 79. Nf6 {[%clk 0:00:22]}  Ne7 {[%clk 0:00:15]} 80. Nd7+ {[%clk 0:00:22]}  Kg7 {[%clk 0:00:14]} 81. Nf6 {[%clk 0:00:23]}  Nc6 {[%clk 0:00:15]} 82. Ne8+ {[%clk 0:00:23]}  Kh6 {[%clk 0:00:14]} 83. Nd6 {[%clk 0:00:24]}  Kg7 {[%clk 0:00:13]} 84. Ne8+ {[%clk 0:00:24]}  Kf8 {[%clk 0:00:12]} 85. Nf6 {[%clk 0:00:24]}  Nd8 {[%clk 0:00:11]} 86. Nh7+ {[%clk 0:00:24]}  Ke7 {[%clk 0:00:11]} 87. Nf6 {[%clk 0:00:24]}  Nb7 {[%clk 0:00:11]} 88. Ng8+ {[%clk 0:00:24]}  Kf8 {[%clk 0:00:11]} 89. Nf6 {[%clk 0:00:24]}  Nc5 {[%clk 0:00:11]} 90. Nh7+ {[%clk 0:00:24]}  Ke7 {[%clk 0:00:11]} 91. Nf6 {[%clk 0:00:24]}  Nd7 {[%clk 0:00:12]} 92. Ng8+ {[%clk 0:00:24]}  Kf8 {[%clk 0:00:11]} 93. Nh6 {[%clk 0:00:23]}  Kg7 {[%clk 0:00:12]} 94. Ng4 {[%clk 0:00:24]}  f6 {[%clk 0:00:12]} 95. exf6+ {[%clk 0:00:24]}  Nxf6 {[%clk 0:00:13]} 96. Ne5 {[%clk 0:00:25]}  Nh7 {[%clk 0:00:11]} 97. Nf3 {[%clk 0:00:23]}  Kf6 {[%clk 0:00:10]} 98. Ke3 {[%clk 0:00:19]}  e5 {[%clk 0:00:10]} 99. Nd2 {[%clk 0:00:19]}  Kf5 {[%clk 0:00:10]} 100. Nf3 {[%clk 0:00:18]}  Nf6 {[%clk 0:00:10]} 101. Nh4+ {[%clk 0:00:19]}  Kg5 {[%clk 0:00:11]} 102. Nf3+ {[%clk 0:00:19]}  Kf5 {[%clk 0:00:11]} 103. Nh4+ {[%clk 0:00:20]}  Ke6 {[%clk 0:00:12]} 104. Nxg6 {[%clk 0:00:21]}  Ng4+ {[%clk 0:00:11]} 105. Kf3 {[%clk 0:00:20]}  Nh6 {[%clk 0:00:12]} 106. Nh4 {[%clk 0:00:19]}  Nf7 {[%clk 0:00:12]} 107. Ke3 {[%clk 0:00:19]}  Nd6 {[%clk 0:00:11]} 108. Ng6 {[%clk 0:00:19]}  Kf5 {[%clk 0:00:11]} 109. Ne7+ {[%clk 0:00:19]}  Ke6 {[%clk 0:00:11]} 110. Nc6 {[%clk 0:00:19]}  d4+ {[%clk 0:00:11]} 111. Nxd4+ {[%clk 0:00:19]}  Kd5 {[%clk 0:00:10]} 112. Nf3 {[%clk 0:00:19]}  Nf5+ {[%clk 0:00:10]} 113. Ke2 {[%clk 0:00:12]}  e4 {[%clk 0:00:10]} 114. Ng5 {[%clk 0:00:13]}  e3 {[%clk 0:00:11]} 115. Nh3 {[%clk 0:00:12]}  Ke4 {[%clk 0:00:10]} 116. Ng5+ {[%clk 0:00:12]}  Kd4 {[%clk 0:00:09]} 117. Ne6+ {[%clk 0:00:12]}  Ke5 {[%clk 0:00:09]} 118. Ng5 {[%clk 0:00:11]}  Kd5 {[%clk 0:00:07]} 119. Nh3 {[%clk 0:00:08]}  Ke5 {[%clk 0:00:06]} 120. Ng5 {[%clk 0:00:08]}  Kf4 {[%clk 0:00:06]} 121. Ne6+ {[%clk 0:00:09]}  Ke5 {[%clk 0:00:06]} 122. Nc5 {[%clk 0:00:09]}  Kd5 {[%clk 0:00:05]} 123. Nd7 {[%clk 0:00:07]}  Kd4 {[%clk 0:00:05]} 124. Nf6 {[%clk 0:00:07]}  Ng3+ {[%clk 0:00:05]} 125. Kf3 {[%clk 0:00:07]}  e2 {[%clk 0:00:05]} 126. Kf2 {[%clk 0:00:07]}  Kd3 {[%clk 0:00:05]} 127. Ke1 {[%clk 0:00:08]}  Nf5 {[%clk 0:00:05]} 128. Nd5 {[%clk 0:00:08]}  Nd4 {[%clk 0:00:05]} 129. Nf4+ {[%clk 0:00:08]}  Ke3 {[%clk 0:00:05]} 130. Nxe2 {[%clk 0:00:09]} 1/2-1/2


[Site "https://www.chess.com"]

[Event "Titled Tuesday Blitz August 08 Late 2023"]
[White "Sari, Yasin"]
[Black "Ozates, Tuna"]
[WhiteFideId "6320902"]
[BlackFideId "6354521"]
[WhiteElo "2382"]
[BlackElo "2606"]
[Result "0-1"]
[Round "4"]
[TimeControl "180+1"]
[Date "2023.08.08"]
[WhiteClock "0:00:00"]
[BlackClock "0:00:45"]
[Board "110"]

1. e4 {[%clk 0:03:00]}  c5 {[%clk 0:02:57]} 2. Nf3 {[%clk 0:03:00]}  Nc6 {[%clk 0:02:54]} 3. Bb5 {[%clk 0:02:58]}  e6 {[%clk 0:02:54]} 4. Bxc6 {[%clk 0:02:57]}  bxc6 {[%clk 0:02:54]} 5. d3 {[%clk 0:02:52]}  d6 {[%clk 0:02:53]} 6. e5 {[%clk 0:02:48]}  d5 {[%clk 0:02:49]} 7. O-O {[%clk 0:02:44]}  Ne7 {[%clk 0:02:45]} 8. Re1 {[%clk 0:02:33]}  Nf5 {[%clk 0:02:43]} 9. b3 {[%clk 0:02:26]}  Be7 {[%clk 0:02:42]} 10. Nbd2 {[%clk 0:02:25]}  h5 {[%clk 0:02:42]} 11. Nf1 {[%clk 0:02:21]}  g5 {[%clk 0:02:42]} 12. Ne3 {[%clk 0:02:17]}  g4 {[%clk 0:02:31]} 13. Nxf5 {[%clk 0:02:12]}  exf5 {[%clk 0:02:31]} 14. Nd2 {[%clk 0:02:11]}  h4 {[%clk 0:02:26]} 15. Nf1 {[%clk 0:02:09]}  Be6 {[%clk 0:02:24]} 16. Bf4 {[%clk 0:02:05]}  d4 {[%clk 0:02:23]} 17. Nd2 {[%clk 0:02:00]}  Qd5 {[%clk 0:02:17]} 18. Qe2 {[%clk 0:01:44]}  h3 {[%clk 0:01:42]} 19. Qf1 {[%clk 0:01:38]}  hxg2 {[%clk 0:01:42]} 20. Qe2 {[%clk 0:01:04]}  Kd7 {[%clk 0:01:32]} 21. c4 {[%clk 0:00:54]}  dxc3 {[%clk 0:01:33]} 22. Nc4 {[%clk 0:00:34]}  Rag8 {[%clk 0:01:21]} 23. Rad1 {[%clk 0:00:11]}  Bg5 {[%clk 0:01:13]} 24. Qe3 {[%clk 0:00:05]}  Rxh2 {[%clk 0:00:58]} 25. Bxh2 {[%clk 0:00:02]}  Bxe3 {[%clk 0:00:57]} 26. Rxe3 {[%clk 0:00:00]}  Rh8 {[%clk 0:00:45]} 0-1


[Site "https://www.chess.com"]

[Event "Titled Tuesday Blitz August 08 Late 2023"]
[White "Chen, Max"]
[Black "Beulen, Marcel"]
[WhiteFideId "2622440"]
[BlackFideId "1001450"]
[WhiteElo "2584"]
[BlackElo "2382"]
[Result "1-0"]
[Round "4"]
[TimeControl "180+1"]
[Date "2023.08.08"]
[WhiteClock "0:00:03"]
[BlackClock "0:00:00"]
[Board "111"]

1. b3 {[%clk 0:03:00]}  d5 {[%clk 0:02:59]} 2. Bb2 {[%clk 0:02:59]}  Nf6 {[%clk 0:02:59]} 3. Nf3 {[%clk 0:02:59]}  c6 {[%clk 0:02:59]} 4. c4 {[%clk 0:02:58]}  Bf5 {[%clk 0:02:57]} 5. e3 {[%clk 0:02:57]}  e6 {[%clk 0:02:57]} 6. Be2 {[%clk 0:02:57]}  Nbd7 {[%clk 0:02:56]} 7. O-O {[%clk 0:02:58]}  Be7 {[%clk 0:02:56]} 8. d3 {[%clk 0:02:56]}  h6 {[%clk 0:02:55]} 9. Re1 {[%clk 0:02:48]}  O-O {[%clk 0:02:54]} 10. Bf1 {[%clk 0:02:48]}  Re8 {[%clk 0:02:45]} 11. Nbd2 {[%clk 0:02:47]}  Bh7 {[%clk 0:02:45]} 12. e4 {[%clk 0:02:47]}  dxe4 {[%clk 0:02:45]} 13. dxe4 {[%clk 0:02:47]}  Bc5 {[%clk 0:02:33]} 14. h3 {[%clk 0:02:35]}  e5 {[%clk 0:02:32]} 15. Qc2 {[%clk 0:02:30]}  a5 {[%clk 0:02:29]} 16. Rad1 {[%clk 0:02:29]}  Qe7 {[%clk 0:02:29]} 17. Nb1 {[%clk 0:02:11]}  Rad8 {[%clk 0:02:22]} 18. Rd2 {[%clk 0:02:11]}  Bb6 {[%clk 0:01:33]} 19. g3 {[%clk 0:02:05]}  Bc7 {[%clk 0:01:21]} 20. Bg2 {[%clk 0:01:26]}  Nc5 {[%clk 0:01:20]} 21. Nc3 {[%clk 0:01:25]}  Rxd2 {[%clk 0:01:14]} 22. Nxd2 {[%clk 0:01:21]}  Ne6 {[%clk 0:01:03]} 23. Nf3 {[%clk 0:01:15]}  Rd8 {[%clk 0:01:00]} 24. Qc1 {[%clk 0:01:11]}  Nd4 {[%clk 0:00:56]} 25. Nd2 {[%clk 0:00:35]}  Bb6 {[%clk 0:00:51]} 26. Na4 {[%clk 0:00:33]}  Ba7 {[%clk 0:00:50]} 27. Ba3 {[%clk 0:00:30]}  Qe6 {[%clk 0:00:42]} 28. c5 {[%clk 0:00:28]}  Bb8 {[%clk 0:00:38]} 29. Nc4 {[%clk 0:00:27]}  Bc7 {[%clk 0:00:37]} 30. Qc3 {[%clk 0:00:24]}  Bg6 {[%clk 0:00:30]} 31. Nxa5 {[%clk 0:00:18]}  Qc8 {[%clk 0:00:20]} 32. Nc4 {[%clk 0:00:18]}  Bh5 {[%clk 0:00:16]} 33. g4 {[%clk 0:00:16]}  Bg6 {[%clk 0:00:15]} 34. Bb2 {[%clk 0:00:12]}  Qe6 {[%clk 0:00:13]} 35. Nab6 {[%clk 0:00:12]}  h5 {[%clk 0:00:12]} 36. g5 {[%clk 0:00:11]}  Nh7 {[%clk 0:00:11]} 37. h4 {[%clk 0:00:11]}  f6 {[%clk 0:00:11]} 38. Bh3 {[%clk 0:00:07]}  Qe7 {[%clk 0:00:09]} 39. gxf6 {[%clk 0:00:06]}  Nxf6 {[%clk 0:00:07]} 40. Nd2 {[%clk 0:00:06]}  Ng4 {[%clk 0:00:05]} 41. Bxg4 {[%clk 0:00:05]}  hxg4 {[%clk 0:00:05]} 42. Qg3 {[%clk 0:00:06]}  Qe6 {[%clk 0:00:00]} 43. Kg2 {[%clk 0:00:03]} 1-0


[Site "https://www.chess.com"]

[Event "Titled Tuesday Blitz August 08 Late 2023"]
[White "Attacker_2006"]
[Black "Eggleston, Thomas A"]
[BlackFideId "412139"]
[WhiteElo "2556"]
[BlackElo "2378"]
[Result "1-0"]
[Round "4"]
[TimeControl "180+1"]
[Date "2023.08.08"]
[WhiteClock "0:02:02"]
[BlackClock "0:00:09"]
[Board "114"]

1. e4 {[%clk 0:03:00]}  e6 {[%clk 0:03:00]} 2. d4 {[%clk 0:02:57]}  d5 {[%clk 0:03:00]} 3. Nd2 {[%clk 0:02:57]}  c5 {[%clk 0:03:00]} 4. exd5 {[%clk 0:02:56]}  Qxd5 {[%clk 0:03:00]} 5. Ngf3 {[%clk 0:02:55]}  cxd4 {[%clk 0:02:58]} 6. Bc4 {[%clk 0:02:55]}  Qd6 {[%clk 0:02:59]} 7. Nb3 {[%clk 0:02:55]}  Qb4+ {[%clk 0:02:42]} 8. Nbd2 {[%clk 0:02:51]}  Nc6 {[%clk 0:02:40]} 9. O-O {[%clk 0:02:49]}  Nf6 {[%clk 0:02:39]} 10. a3 {[%clk 0:02:49]}  Qd6 {[%clk 0:02:30]} 11. Nb3 {[%clk 0:02:46]}  Be7 {[%clk 0:02:27]} 12. Nbxd4 {[%clk 0:02:45]}  Nxd4 {[%clk 0:02:26]} 13. Qxd4 {[%clk 0:02:44]}  Qxd4 {[%clk 0:02:22]} 14. Nxd4 {[%clk 0:02:45]}  O-O {[%clk 0:02:13]} 15. Bf4 {[%clk 0:02:44]}  a6 {[%clk 0:02:10]} 16. Be2 {[%clk 0:02:41]}  Nd5 {[%clk 0:02:00]} 17. Bg3 {[%clk 0:02:40]}  Bf6 {[%clk 0:01:55]} 18. c3 {[%clk 0:02:41]}  b6 {[%clk 0:01:50]} 19. Nc6 {[%clk 0:02:36]}  Bb7 {[%clk 0:01:48]} 20. Ne5 {[%clk 0:02:37]}  Rfd8 {[%clk 0:01:40]} 21. Bf3 {[%clk 0:02:36]}  b5 {[%clk 0:01:27]} 22. Rfd1 {[%clk 0:02:33]}  Rac8 {[%clk 0:01:20]} 23. Rd2 {[%clk 0:02:33]}  Ba8 {[%clk 0:00:54]} 24. Rad1 {[%clk 0:02:33]}  g6 {[%clk 0:00:47]} 25. Nd3 {[%clk 0:02:29]}  Ne7 {[%clk 0:00:43]} 26. Bxa8 {[%clk 0:02:26]}  Rxa8 {[%clk 0:00:42]} 27. Nc5 {[%clk 0:02:23]}  Rxd2 {[%clk 0:00:34]} 28. Rxd2 {[%clk 0:02:24]}  Nd5 {[%clk 0:00:34]} 29. h4 {[%clk 0:02:20]}  Kg7 {[%clk 0:00:33]} 30. h5 {[%clk 0:02:19]}  gxh5 {[%clk 0:00:33]} 31. Ne4 {[%clk 0:02:20]}  Be7 {[%clk 0:00:33]} 32. Be5+ {[%clk 0:02:19]}  f6 {[%clk 0:00:33]} 33. Bg3 {[%clk 0:02:18]}  f5 {[%clk 0:00:32]} 34. Be5+ {[%clk 0:02:15]}  Kf7 {[%clk 0:00:31]} 35. Nd6+ {[%clk 0:02:15]}  Kg6 {[%clk 0:00:30]} 36. Rd3 {[%clk 0:02:15]}  h4 {[%clk 0:00:27]} 37. g3 {[%clk 0:02:12]}  Rd8 {[%clk 0:00:25]} 38. Nb7 {[%clk 0:02:09]}  Rd7 {[%clk 0:00:25]} 39. Na5 {[%clk 0:02:10]}  h3 {[%clk 0:00:19]} 40. Nc6 {[%clk 0:02:10]}  Bf6 {[%clk 0:00:18]} 41. Kh2 {[%clk 0:02:08]}  Rg7 {[%clk 0:00:15]} 42. Kxh3 {[%clk 0:02:07]}  Bxe5 {[%clk 0:00:14]} 43. Nxe5+ {[%clk 0:02:08]}  Kf6 {[%clk 0:00:15]} 44. f4 {[%clk 0:02:09]}  h5 {[%clk 0:00:15]} 45. Kh4 {[%clk 0:02:08]}  Rh7 {[%clk 0:00:14]} 46. b3 {[%clk 0:02:06]}  Rh6 {[%clk 0:00:15]} 47. c4 {[%clk 0:02:07]}  bxc4 {[%clk 0:00:14]} 48. bxc4 {[%clk 0:02:08]}  Ne7 {[%clk 0:00:14]} 49. Nf3 {[%clk 0:02:05]}  Rg6 {[%clk 0:00:14]} 50. Kh3 {[%clk 0:02:03]}  Rg4 {[%clk 0:00:14]} 51. Ne5 {[%clk 0:02:03]}  Rg7 {[%clk 0:00:11]} 52. c5 {[%clk 0:02:04]}  Ng6 {[%clk 0:00:11]} 53. Nd7+ {[%clk 0:02:03]}  Ke7 {[%clk 0:00:10]} 54. c6 {[%clk 0:02:04]}  Kd8 {[%clk 0:00:10]} 55. Nc5+ {[%clk 0:02:02]}  Kc8 {[%clk 0:00:10]} 56. Nxe6 {[%clk 0:02:02]}  Re7 {[%clk 0:00:09]} 57. Rd8# {[%clk 0:02:02]} 1-0


[Site "https://www.chess.com"]

[Event "Titled Tuesday Blitz August 08 Late 2023"]
[White "Davidson, Kevin"]
[Black "Przybylski, Wojciech"]
[WhiteFideId "2056810"]
[BlackFideId "1117599"]
[WhiteElo "2378"]
[BlackElo "2554"]
[Result "0-1"]
[Round "4"]
[TimeControl "180+1"]
[Date "2023.08.08"]
[WhiteClock "0:00:00"]
[BlackClock "0:01:08"]
[Board "115"]

1. e4 {[%clk 0:03:00]}  c5 {[%clk 0:02:58]} 2. Nf3 {[%clk 0:03:00]}  e6 {[%clk 0:02:57]} 3. d4 {[%clk 0:03:01]}  cxd4 {[%clk 0:02:58]} 4. Nxd4 {[%clk 0:03:01]}  Nc6 {[%clk 0:02:58]} 5. Nc3 {[%clk 0:03:02]}  Qc7 {[%clk 0:02:58]} 6. g3 {[%clk 0:03:02]}  h5 {[%clk 0:02:58]} 7. h3 {[%clk 0:02:57]}  h4 {[%clk 0:02:57]} 8. g4 {[%clk 0:02:57]}  Bc5 {[%clk 0:02:55]} 9. Nb3 {[%clk 0:02:55]}  Bxf2+ {[%clk 0:02:32]} 10. Kxf2 {[%clk 0:02:56]}  Qg3+ {[%clk 0:02:31]} 11. Ke2 {[%clk 0:02:55]}  Ne5 {[%clk 0:02:31]} 12. Nd4 {[%clk 0:02:34]}  b6 {[%clk 0:02:31]} 13. Be3 {[%clk 0:02:26]}  Ba6+ {[%clk 0:02:27]} 14. Kd2 {[%clk 0:02:14]}  Bxf1 {[%clk 0:02:14]} 15. Qxf1 {[%clk 0:02:08]}  Rc8 {[%clk 0:02:10]} 16. Rg1 {[%clk 0:01:26]}  Qh2+ {[%clk 0:02:02]} 17. Kc1 {[%clk 0:01:12]}  Ng6 {[%clk 0:01:48]} 18. Qa6 {[%clk 0:00:45]}  N8e7 {[%clk 0:01:44]} 19. Qe2 {[%clk 0:00:31]}  Qxh3 {[%clk 0:01:26]} 20. a4 {[%clk 0:00:26]}  Ne5 {[%clk 0:01:11]} 21. Qg2 {[%clk 0:00:21]}  Qxe3+ {[%clk 0:01:09]} 22. Kb1 {[%clk 0:00:00]}  Qxd4 {[%clk 0:01:08]} 0-1


[Site "https://www.chess.com"]

[Event "Titled Tuesday Blitz August 08 Late 2023"]
[White "Gatterer, Florian"]
[Black "Koc, Przemyslaw"]
[WhiteFideId "811688"]
[BlackFideId "1109081"]
[WhiteElo "2370"]
[BlackElo "2504"]
[Result "1/2-1/2"]
[Round "4"]
[TimeControl "180+1"]
[Date "2023.08.08"]
[WhiteClock "0:00:07"]
[BlackClock "0:00:16"]
[Board "118"]

1. e4 {[%clk 0:03:00]}  d6 {[%clk 0:03:00]} 2. d4 {[%clk 0:03:00]}  Nf6 {[%clk 0:03:01]} 3. Nc3 {[%clk 0:03:00]}  e5 {[%clk 0:03:02]} 4. dxe5 {[%clk 0:03:01]}  dxe5 {[%clk 0:03:02]} 5. Qxd8+ {[%clk 0:03:00]}  Kxd8 {[%clk 0:03:03]} 6. Bc4 {[%clk 0:02:59]}  Be6 {[%clk 0:03:03]} 7. Bxe6 {[%clk 0:02:59]}  fxe6 {[%clk 0:03:04]} 8. Bd2 {[%clk 0:02:50]}  Nc6 {[%clk 0:03:03]} 9. f3 {[%clk 0:02:45]}  Bd6 {[%clk 0:03:01]} 10. Nge2 {[%clk 0:02:42]}  Ke7 {[%clk 0:03:00]} 11. O-O-O {[%clk 0:02:42]}  Rhb8 {[%clk 0:02:59]} 12. Nb5 {[%clk 0:02:40]}  a6 {[%clk 0:02:58]} 13. Nxd6 {[%clk 0:02:39]}  cxd6 {[%clk 0:02:59]} 14. Bg5 {[%clk 0:02:37]}  b5 {[%clk 0:02:58]} 15. f4 {[%clk 0:02:35]}  h6 {[%clk 0:02:50]} 16. Bxf6+ {[%clk 0:02:33]}  gxf6 {[%clk 0:02:51]} 17. Rd2 {[%clk 0:02:25]}  exf4 {[%clk 0:02:41]} 18. Nxf4 {[%clk 0:02:24]}  Ne5 {[%clk 0:02:42]} 19. b3 {[%clk 0:02:21]}  Rg8 {[%clk 0:02:39]} 20. g3 {[%clk 0:02:19]}  Rac8 {[%clk 0:02:34]} 21. Rhd1 {[%clk 0:02:15]}  Rc6 {[%clk 0:02:34]} 22. Nd3 {[%clk 0:02:07]}  Nxd3+ {[%clk 0:02:15]} 23. Rxd3 {[%clk 0:02:05]}  b4 {[%clk 0:02:16]} 24. Rf3 {[%clk 0:01:53]}  Rgc8 {[%clk 0:02:07]} 25. Rd2 {[%clk 0:01:52]}  Rc3 {[%clk 0:02:07]} 26. Rdf2 {[%clk 0:01:43]}  Rxf3 {[%clk 0:02:07]} 27. Rxf3 {[%clk 0:01:43]}  a5 {[%clk 0:02:05]} 28. Rf4 {[%clk 0:01:40]}  Rg8 {[%clk 0:01:59]} 29. Rh4 {[%clk 0:01:34]}  Rg6 {[%clk 0:01:58]} 30. Rh5 {[%clk 0:01:34]}  e5 {[%clk 0:01:57]} 31. Kd2 {[%clk 0:01:26]}  Ke6 {[%clk 0:01:57]} 32. c3 {[%clk 0:01:27]}  d5 {[%clk 0:01:56]} 33. exd5+ {[%clk 0:01:17]}  Kxd5 {[%clk 0:01:56]} 34. cxb4 {[%clk 0:01:15]}  axb4 {[%clk 0:01:56]} 35. Kd3 {[%clk 0:01:15]}  f5 {[%clk 0:01:22]} 36. Rxf5 {[%clk 0:01:10]}  Ra6 {[%clk 0:01:22]} 37. Rf8 {[%clk 0:00:53]}  Rxa2 {[%clk 0:01:21]} 38. Rd8+ {[%clk 0:00:53]}  Ke6 {[%clk 0:01:21]} 39. h4 {[%clk 0:00:45]}  Kf5 {[%clk 0:01:01]} 40. Rg8 {[%clk 0:00:33]}  Rb2 {[%clk 0:00:48]} 41. Kc4 {[%clk 0:00:32]}  e4 {[%clk 0:00:49]} 42. Kxb4 {[%clk 0:00:27]}  e3 {[%clk 0:00:48]} 43. g4+ {[%clk 0:00:18]}  Kf4 {[%clk 0:00:47]} 44. g5 {[%clk 0:00:18]}  e2 {[%clk 0:00:47]} 45. Re8 {[%clk 0:00:16]}  hxg5 {[%clk 0:00:46]} 46. hxg5 {[%clk 0:00:16]}  Kxg5 {[%clk 0:00:46]} 47. Kc3 {[%clk 0:00:15]}  Ra2 {[%clk 0:00:46]} 48. b4 {[%clk 0:00:16]}  Kf4 {[%clk 0:00:45]} 49. Kc4 {[%clk 0:00:12]}  Kf3 {[%clk 0:00:45]} 50. b5 {[%clk 0:00:10]}  Ra3 {[%clk 0:00:42]} 51. Rxe2 {[%clk 0:00:07]}  Kxe2 {[%clk 0:00:42]} 52. b6 {[%clk 0:00:06]}  Ra1 {[%clk 0:00:22]} 53. Kc5 {[%clk 0:00:06]}  Kd3 {[%clk 0:00:19]} 54. Kc6 {[%clk 0:00:06]}  Rc1+ {[%clk 0:00:19]} 55. Kd7 {[%clk 0:00:06]}  Rb1 {[%clk 0:00:15]} 56. Kc7 {[%clk 0:00:06]}  Kc4 {[%clk 0:00:15]} 57. b7 {[%clk 0:00:06]}  Kc5 {[%clk 0:00:15]} 58. b8=Q {[%clk 0:00:07]}  Rxb8 {[%clk 0:00:16]} 59. Kxb8 {[%clk 0:00:07]} 1/2-1/2


[Site "https://www.chess.com"]

[Event "Titled Tuesday Blitz August 08 Late 2023"]
[White "K2JW"]
[Black "Ibadov, Dashgyn"]
[BlackFideId "24107514"]
[WhiteElo "2364"]
[BlackElo "2503"]
[Result "0-1"]
[Round "4"]
[TimeControl "180+1"]
[Date "2023.08.08"]
[WhiteClock "0:01:49"]
[BlackClock "0:02:02"]
[Board "120"]

1. e4 {[%clk 0:03:00]}  e5 {[%clk 0:02:59]} 2. Nc3 {[%clk 0:02:56]}  Nf6 {[%clk 0:02:59]} 3. g3 {[%clk 0:02:54]}  d5 {[%clk 0:02:57]} 4. exd5 {[%clk 0:02:51]}  c6 {[%clk 0:02:57]} 5. dxc6 {[%clk 0:02:44]}  Nxc6 {[%clk 0:02:58]} 6. Bg2 {[%clk 0:02:44]}  Bg4 {[%clk 0:02:58]} 7. Nge2 {[%clk 0:02:40]}  Nd4 {[%clk 0:02:57]} 8. h3 {[%clk 0:02:33]}  Bf3 {[%clk 0:02:47]} 9. O-O {[%clk 0:02:24]}  Qd7 {[%clk 0:02:34]} 10. d3 {[%clk 0:01:59]}  Bb4 {[%clk 0:02:13]} 11. Bxf3 {[%clk 0:01:56]}  Nxf3+ {[%clk 0:02:12]} 12. Kg2 {[%clk 0:01:56]}  Qc6 {[%clk 0:02:05]} 13. Ne4 {[%clk 0:01:51]}  Nxe4 {[%clk 0:02:02]} 14. dxe4 {[%clk 0:01:51]}  Qxe4 {[%clk 0:02:03]} 15. Qd3 {[%clk 0:01:49]}  Nh4+ {[%clk 0:02:02]} 0-1


[Site "https://www.chess.com"]